[Event "Early-Titled-Tuesday-Blitz-January-23-2024"]
[Site "Chess.com"]
[Date "2024.01.23"]
[Round "7"]
[White "Dinosaurio_1975"]
[Black "Nemegejas"]
[Result "1-0"]
[WhiteElo "2660"]
[BlackElo "2872"]
[TimeControl "180+1"]
[EndTime "9:19:08 PST"]
[Termination "Dinosaurio_1975 won by resignation"]

1. c4 {[%clk 0:03:00.9]} 1... Nf6 {[%clk 0:02:59.9]} 2. d4 {[%clk 0:03:00.3]}
2... g6 {[%clk 0:02:59.1]} 3. Nc3 {[%clk 0:03:00.4]} 3... d5 {[%clk 0:02:58.3]}
4. cxd5 {[%clk 0:02:59.1]} 4... Nxd5 {[%clk 0:02:59.2]} 5. Bd2 {[%clk
0:02:58.1]} 5... c5 {[%clk 0:02:56.7]} 6. e4 {[%clk 0:02:56.7]} 6... Nxc3 {[%clk
0:02:54.8]} 7. Bxc3 {[%clk 0:02:56.4]} 7... cxd4 {[%clk 0:02:51.4]} 8. Bxd4
{[%clk 0:02:54.7]} 8... e5 {[%clk 0:02:50.5]} 9. Bxe5 {[%clk 0:02:51.2]} 9...
Bb4+ {[%clk 0:02:50.4]} 10. Bc3 {[%clk 0:02:49.8]} 10... Bxc3+ {[%clk
0:02:50.5]} 11. bxc3 {[%clk 0:02:50.7]} 11... Qe7 {[%clk 0:02:48.7]} 12. Qd4
{[%clk 0:02:49.9]} 12... O-O {[%clk 0:02:48.6]} 13. Nf3 {[%clk 0:02:48.9]} 13...
Re8 {[%clk 0:02:43.2]} 14. Bd3 {[%clk 0:02:46.2]} 14... Bg4 {[%clk 0:02:41.7]}
15. Qe3 {[%clk 0:02:36.5]} 15... Bxf3 {[%clk 0:02:19.8]} 16. Qxf3 {[%clk
0:02:37.4]} 16... Nd7 {[%clk 0:02:19.5]} 17. O-O {[%clk 0:02:32.1]} 17... Ne5
{[%clk 0:02:19.5]} 18. Qe2 {[%clk 0:02:32.5]} 18... Nxd3 {[%clk 0:02:20.1]} 19.
Qxd3 {[%clk 0:02:33.4]} 19... Qxe4 {[%clk 0:02:20.6]} 20. Qxe4 {[%clk
0:01:47.3]} 20... Rxe4 {[%clk 0:02:21.5]} 21. Rfd1 {[%clk 0:01:47.5]} 21... Ra4
{[%clk 0:02:14.5]} 22. h3 {[%clk 0:01:44.3]} 22... Rc8 {[%clk 0:02:09.7]} 23.
Rd7 {[%clk 0:01:43.1]} 23... b6 {[%clk 0:02:05.1]} 24. Re1 {[%clk 0:01:41.9]}
24... Rxc3 {[%clk 0:01:43]} 25. Ree7 {[%clk 0:01:36.2]} 25... Rc1+ {[%clk
0:01:41.1]} 26. Kh2 {[%clk 0:01:35.8]} 26... Rf4 {[%clk 0:01:41.6]} 27. Kg3
{[%clk 0:01:35]} 27... Rf5 {[%clk 0:01:31.9]} 28. Rxa7 {[%clk 0:01:31.9]} 28...
h5 {[%clk 0:01:28.6]} 29. h4 {[%clk 0:01:26.5]} 29... Rc3+ {[%clk 0:01:21.4]}
30. f3 {[%clk 0:01:26.5]} 30... Rc2 {[%clk 0:01:20.6]} 31. a4 {[%clk 0:01:25.7]}
31... g5 {[%clk 0:01:15.3]} 32. hxg5 {[%clk 0:01:20.2]} 32... Rxg5+ {[%clk
0:01:16.2]} 33. Kf4 {[%clk 0:01:20.3]} 33... Rg7 {[%clk 0:01:14.9]} 34. g3
{[%clk 0:01:14]} 34... Rc6 {[%clk 0:01:07.7]} 35. Re8+ {[%clk 0:00:56.2]} 35...
Kh7 {[%clk 0:01:07.5]} 36. Re5 {[%clk 0:00:54.3]} 36... Rf6+ {[%clk 0:01:07.3]}
37. Rf5 {[%clk 0:00:50.1]} 37... Rxf5+ {[%clk 0:00:46.5]} 38. Kxf5 {[%clk
0:00:51]} 38... Rxg3 {[%clk 0:00:18.8]} 39. Kf4 {[%clk 0:00:21.1]} 39... Rg7
{[%clk 0:00:16.7]} 40. Rb7 {[%clk 0:00:20.8]} 40... Rg6 {[%clk 0:00:06.4]} 41.
Rxf7+ {[%clk 0:00:19.6]} 41... Kh6 {[%clk 0:00:07]} 42. Rf8 {[%clk 0:00:18.2]}
42... Rc6 {[%clk 0:00:04.7]} 43. Ke5 {[%clk 0:00:13.1]} 43... Rc5+ {[%clk
0:00:02.6]} 44. Ke6 {[%clk 0:00:08.2]} 44... Rc6+ {[%clk 0:00:02.5]} 45. Ke5
{[%clk 0:00:08]} 45... Rc5+ {[%clk 0:00:02.7]} 46. Kd6 {[%clk 0:00:07.2]} 46...
Kg5 {[%clk 0:00:02.7]} 47. f4+ {[%clk 0:00:07.6]} 47... Kg4 {[%clk 0:00:03]} 48.
Ke6 {[%clk 0:00:08.2]} 48... h4 {[%clk 0:00:02.5]} 49. f5 {[%clk 0:00:08.3]}
49... h3 {[%clk 0:00:02.6]} 50. Rg8+ {[%clk 0:00:06]} 50... Kf4 {[%clk 0:00:03]}
51. f6 {[%clk 0:00:04.2]} 51... Re5+ {[%clk 0:00:03.6]} 52. Kd7 {[%clk 0:00:03]}
52... Rf5 {[%clk 0:00:03.4]} 53. Ke7 {[%clk 0:00:02.4]} 53... Re5+ {[%clk
0:00:03.7]} 54. Kd7 {[%clk 0:00:03]} 54... Rf5 {[%clk 0:00:02.5]} 55. Ke7 {[%clk
0:00:03.4]} 55... h2 {[%clk 0:00:02.2]} 56. Rh8 {[%clk 0:00:03.1]} 56... Re5+
{[%clk 0:00:02.7]} 57. Kf8 {[%clk 0:00:02.8]} 57... Kg3 {[%clk 0:00:02.5]} 58.
f7 {[%clk 0:00:02.1]} 58... Kg2 {[%clk 0:00:02.5]} 59. Kg8 {[%clk 0:00:01.5]}
59... Rg5+ {[%clk 0:00:02.6]} 60. Kf8 {[%clk 0:00:02.1]} 60... Rf5 {[%clk
0:00:02.4]} 61. Ke8 {[%clk 0:00:01.7]} 61... Re5+ {[%clk 0:00:02.4]} 62. Kd7
{[%clk 0:00:01.9]} 62... Rf5 {[%clk 0:00:02.6]} 63. Ke7 {[%clk 0:00:02.6]} 63...
Re5+ {[%clk 0:00:01.8]} 64. Kf6 {[%clk 0:00:02.4]} 64... Re3 {[%clk 0:00:02.5]}
65. f8=Q {[%clk 0:00:02.8]} 65... Rf3+ {[%clk 0:00:03.4]} 66. Ke7 {[%clk
0:00:03.4]} 66... Rxf8 {[%clk 0:00:03.9]} 67. Kxf8 {[%clk 0:00:04.3]} 67... h1=Q
{[%clk 0:00:04.4]} 68. Rxh1 {[%clk 0:00:05]} 68... Kxh1 {[%clk 0:00:05]} 69. Ke7
{[%clk 0:00:05.9]} 69... Kg2 {[%clk 0:00:05.2]} 70. Kd6 {[%clk 0:00:06.4]} 70...
Kf3 {[%clk 0:00:05.2]} 71. Kc6 {[%clk 0:00:07]} 71... Ke4 {[%clk 0:00:05.4]} 72.
Kxb6 {[%clk 0:00:07.7]} 72... Kd5 {[%clk 0:00:06.1]} 73. a5 {[%clk 0:00:08.3]}
73... Kd6 {[%clk 0:00:06.8]} 74. a6 {[%clk 0:00:08.9]} 1-0

[Event "Early-Titled-Tuesday-Blitz-January-23-2024"]
[Site "Chess.com"]
[Date "2024.01.23"]
[Round "7"]
[White "Sanyura"]
[Black "Hovik_Hayrapetyan"]
[Result "1-0"]
[WhiteElo "2630"]
[BlackElo "2817"]
[TimeControl "180+1"]
[EndTime "9:19:08 PST"]
[Termination "Sanyura won on time"]

1. e4 {[%clk 0:02:59.5]} 1... c5 {[%clk 0:02:59.9]} 2. Nf3 {[%clk 0:02:56.9]}
2... d6 {[%clk 0:03:00.1]} 3. d4 {[%clk 0:02:54.7]} 3... cxd4 {[%clk 0:03:01]}
4. Nxd4 {[%clk 0:02:55.5]} 4... Nf6 {[%clk 0:03:01.6]} 5. Nc3 {[%clk 0:02:55.8]}
5... a6 {[%clk 0:03:02.2]} 6. g3 {[%clk 0:02:55.4]} 6... e5 {[%clk 0:03:01.8]}
7. Nb3 {[%clk 0:02:55]} 7... Nbd7 {[%clk 0:02:54.9]} 8. Bg2 {[%clk 0:02:54.3]}
8... Be7 {[%clk 0:02:51.2]} 9. a4 {[%clk 0:02:50.5]} 9... b6 {[%clk 0:02:48.3]}
10. O-O {[%clk 0:02:38.2]} 10... h5 {[%clk 0:02:47.9]} 11. Re1 {[%clk
0:02:34.8]} 11... h4 {[%clk 0:02:42.8]} 12. Nd2 {[%clk 0:02:31]} 12... hxg3
{[%clk 0:02:40]} 13. hxg3 {[%clk 0:02:30.8]} 13... Qc7 {[%clk 0:02:18.6]} 14.
Nf1 {[%clk 0:02:13.2]} 14... Bb7 {[%clk 0:02:14]} 15. Ne3 {[%clk 0:02:09.3]}
15... g6 {[%clk 0:02:14.2]} 16. Ned5 {[%clk 0:01:55.6]} 16... Nxd5 {[%clk
0:02:13.8]} 17. Nxd5 {[%clk 0:01:56.1]} 17... Bxd5 {[%clk 0:02:13.9]} 18. Qxd5
{[%clk 0:01:56.3]} 18... Rc8 {[%clk 0:02:14.3]} 19. c3 {[%clk 0:01:50.7]} 19...
Kf8 {[%clk 0:01:48.2]} 20. Be3 {[%clk 0:01:37.9]} 20... Kg7 {[%clk 0:01:46.5]}
21. Qd3 {[%clk 0:01:23.4]} 21... a5 {[%clk 0:01:44.9]} 22. Rad1 {[%clk 0:01:22]}
22... Nf6 {[%clk 0:01:39.4]} 23. Bg5 {[%clk 0:01:16.2]} 23... Rh5 {[%clk
0:01:35.2]} 24. Be3 {[%clk 0:00:47.2]} 24... Ng4 {[%clk 0:01:21.4]} 25. Bf3
{[%clk 0:00:42.8]} 25... Nxe3 {[%clk 0:01:17.3]} 26. Qxe3 {[%clk 0:00:40.9]}
26... Rh6 {[%clk 0:01:15.5]} 27. Rd3 {[%clk 0:00:33.7]} 27... Rch8 {[%clk
0:01:13.3]} 28. Red1 {[%clk 0:00:32.7]} 28... Rh2 {[%clk 0:01:04.3]} 29. Bg2
{[%clk 0:00:23.6]} 29... Qd7 {[%clk 0:00:59.7]} 30. Qf3 {[%clk 0:00:09.7]} 30...
Qxa4 {[%clk 0:00:54.1]} 31. b4 {[%clk 0:00:02.6]} 31... axb4 {[%clk 0:00:52.8]}
32. cxb4 {[%clk 0:00:03.5]} 32... Qxb4 {[%clk 0:00:52.3]} 33. Rb3 {[%clk
0:00:02.8]} 33... Qa5 {[%clk 0:00:51.5]} 34. Rdb1 {[%clk 0:00:03.2]} 34... Bd8
{[%clk 0:00:32.4]} 35. Qd3 {[%clk 0:00:03.1]} 35... Qc5 {[%clk 0:00:24.3]} 36.
Rc3 {[%clk 0:00:03]} 36... Qd4 {[%clk 0:00:21.7]} 37. Qxd4 {[%clk 0:00:03.3]}
37... exd4 {[%clk 0:00:22.6]} 38. Rd3 {[%clk 0:00:03.7]} 38... Bf6 {[%clk
0:00:20.4]} 39. Rxb6 {[%clk 0:00:03.8]} 39... R2h5 {[%clk 0:00:20.3]} 40. Rxd6
{[%clk 0:00:04]} 40... Rc8 {[%clk 0:00:16.8]} 41. Bf3 {[%clk 0:00:03.9]} 41...
Rc1+ {[%clk 0:00:14.9]} 42. Rd1 {[%clk 0:00:03.9]} 42... Rhc5 {[%clk 0:00:14.3]}
43. Kg2 {[%clk 0:00:04.1]} 43... R1c3 {[%clk 0:00:10.6]} 44. Bg4 {[%clk
0:00:03.2]} 44... Rc2 {[%clk 0:00:09.6]} 45. Bf3 {[%clk 0:00:03.6]} 45... Rb2
{[%clk 0:00:09.1]} 46. Rd5 {[%clk 0:00:03.2]} 46... Rcc2 {[%clk 0:00:09]} 47.
Rf1 {[%clk 0:00:04]} 47... Bg5 {[%clk 0:00:03]} 48. Rxg5 {[%clk 0:00:03.7]}
48... d3 {[%clk 0:00:01.1]} 49. Rd5 {[%clk 0:00:04.4]} 49... d2 {[%clk
0:00:01.7]} 50. Rd1 {[%clk 0:00:05]} 50... Kf6 {[%clk 0:00:01.2]} 51. e5+ {[%clk
0:00:05.4]} 51... Ke6 {[%clk 0:00:01.5]} 52. Be4 {[%clk 0:00:05.8]} 52... Rc1
{[%clk 0:00:02]} 53. R5xd2 {[%clk 0:00:06]} 53... Rxd2 {[%clk 0:00:02.3]} 54.
Rxd2 {[%clk 0:00:06.9]} 54... Re1 {[%clk 0:00:03]} 55. Bd5+ {[%clk 0:00:07]}
55... Kxe5 {[%clk 0:00:02.8]} 56. Bxf7 {[%clk 0:00:07.7]} 56... Kf6 {[%clk
0:00:03.4]} 57. Bc4 {[%clk 0:00:07.7]} 57... Rc1 {[%clk 0:00:03.1]} 58. Rd6+
{[%clk 0:00:07.6]} 58... Ke5 {[%clk 0:00:02.5]} 59. Re6+ {[%clk 0:00:08]} 59...
Kf5 {[%clk 0:00:03]} 60. Rc6 {[%clk 0:00:07.2]} 60... Kg5 {[%clk 0:00:02.7]} 61.
Bd5 {[%clk 0:00:06]} 61... Rd1 {[%clk 0:00:02.5]} 62. Be4 {[%clk 0:00:06.3]}
62... Rd2 {[%clk 0:00:02.2]} 63. Rxg6+ {[%clk 0:00:06.3]} 63... Kh5 {[%clk
0:00:03.1]} 64. Re6 {[%clk 0:00:05.1]} 64... Kg5 {[%clk 0:00:02.6]} 65. Re5+
{[%clk 0:00:05.6]} 65... Kf6 {[%clk 0:00:01.6]} 66. Rf5+ {[%clk 0:00:06.2]}
66... Ke6 {[%clk 0:00:02.1]} 67. g4 {[%clk 0:00:06.9]} 67... Rd4 {[%clk
0:00:01.7]} 68. f3 {[%clk 0:00:06.9]} 68... Rd1 {[%clk 0:00:01.6]} 69. Kg3
{[%clk 0:00:07.6]} 1-0

[Event "Early-Titled-Tuesday-Blitz-January-23-2024"]
[Site "Chess.com"]
[Date "2024.01.23"]
[Round "7"]
[White "Sanan_Sjugirov"]
[Black "MatthewG-p4p"]
[Result "1-0"]
[WhiteElo "3017"]
[BlackElo "2889"]
[TimeControl "180+1"]
[EndTime "9:19:09 PST"]
[Termination "Sanan_Sjugirov won by resignation"]

1. Nf3 {[%clk 0:03:00.9]} 1... c5 {[%clk 0:02:58.3]} 2. g3 {[%clk 0:03:00.5]}
2... g6 {[%clk 0:02:58.7]} 3. Bg2 {[%clk 0:03:00.3]} 3... Bg7 {[%clk 0:02:59.2]}
4. d4 {[%clk 0:03:00.3]} 4... cxd4 {[%clk 0:02:59.2]} 5. Nxd4 {[%clk 0:03:01.2]}
5... Nc6 {[%clk 0:02:59.9]} 6. Nxc6 {[%clk 0:03:01.5]} 6... bxc6 {[%clk
0:03:00.8]} 7. c4 {[%clk 0:03:01.9]} 7... Rb8 {[%clk 0:03:01.1]} 8. Nc3 {[%clk
0:03:01.9]} 8... Nf6 {[%clk 0:03:01.6]} 9. O-O {[%clk 0:02:59.3]} 9... Qc7
{[%clk 0:02:58.9]} 10. b3 {[%clk 0:02:52]} 10... O-O {[%clk 0:02:51.2]} 11. Bb2
{[%clk 0:02:47.6]} 11... Bb7 {[%clk 0:02:51.6]} 12. Qd2 {[%clk 0:02:45]} 12...
Rfd8 {[%clk 0:02:41]} 13. Rfd1 {[%clk 0:02:41.3]} 13... d5 {[%clk 0:02:10.7]}
14. cxd5 {[%clk 0:02:41]} 14... cxd5 {[%clk 0:02:10.9]} 15. Rac1 {[%clk
0:02:40]} 15... Qa5 {[%clk 0:02:10.8]} 16. Na4 {[%clk 0:02:07.4]} 16... Qxd2
{[%clk 0:01:21.4]} 17. Rxd2 {[%clk 0:02:08.3]} 17... Rbc8 {[%clk 0:01:03.1]} 18.
Rdc2 {[%clk 0:02:08.4]} 18... Rxc2 {[%clk 0:01:00.7]} 19. Rxc2 {[%clk
0:02:09.3]} 19... Ne8 {[%clk 0:00:58]} 20. Bxg7 {[%clk 0:01:33.3]} 20... Kxg7
{[%clk 0:00:58.9]} 21. e3 {[%clk 0:01:33.3]} 21... e6 {[%clk 0:00:46.9]} 22. Nc5
{[%clk 0:01:14.8]} 22... Bc8 {[%clk 0:00:46.1]} 23. Kf1 {[%clk 0:00:55.5]} 23...
Kf6 {[%clk 0:00:45.5]} 24. Ke1 {[%clk 0:00:55.4]} 24... Ke7 {[%clk 0:00:46]} 25.
Bf1 {[%clk 0:00:49.3]} 25... e5 {[%clk 0:00:43.9]} 26. Bg2 {[%clk 0:00:39.9]}
26... Bf5 {[%clk 0:00:39.9]} 27. Rc1 {[%clk 0:00:39.5]} 27... Nf6 {[%clk
0:00:18.4]} 28. b4 {[%clk 0:00:22.4]} 28... Rc8 {[%clk 0:00:18.2]} 29. Kd2
{[%clk 0:00:21.8]} 29... Rc7 {[%clk 0:00:09.2]} 30. a3 {[%clk 0:00:20.3]} 30...
Rc8 {[%clk 0:00:09.3]} 31. f3 {[%clk 0:00:17.5]} 31... Ne8 {[%clk 0:00:05.8]}
32. Bf1 {[%clk 0:00:16.3]} 32... Nd6 {[%clk 0:00:05.6]} 33. Be2 {[%clk 0:00:15]}
33... h5 {[%clk 0:00:05.4]} 34. a4 {[%clk 0:00:12.8]} 34... Rc7 {[%clk
0:00:04.6]} 35. a5 {[%clk 0:00:09.9]} 35... Rc8 {[%clk 0:00:05.1]} 36. b5 {[%clk
0:00:09.1]} 36... Rb8 {[%clk 0:00:05.6]} 37. Na6 {[%clk 0:00:07.4]} 37... Rb7
{[%clk 0:00:05.5]} 38. Rc7+ {[%clk 0:00:06.5]} 38... Rxc7 {[%clk 0:00:05.9]} 39.
Nxc7 {[%clk 0:00:07.4]} 39... d4 {[%clk 0:00:04.1]} 40. exd4 {[%clk 0:00:07.1]}
40... exd4 {[%clk 0:00:05]} 41. b6 {[%clk 0:00:07.5]} 41... axb6 {[%clk
0:00:05.9]} 42. a6 {[%clk 0:00:05.2]} 42... Nc8 {[%clk 0:00:06.5]} 43. Nb5
{[%clk 0:00:04.1]} 43... Bd7 {[%clk 0:00:05]} 44. Nxd4 {[%clk 0:00:04.5]} 44...
Na7 {[%clk 0:00:05.3]} 45. Kc3 {[%clk 0:00:04]} 45... Kd6 {[%clk 0:00:06]} 46.
Kb4 {[%clk 0:00:04.3]} 46... Kd5 {[%clk 0:00:06.7]} 47. Kc3 {[%clk 0:00:03.1]}
47... Kc5 {[%clk 0:00:06.5]} 48. Nb3+ {[%clk 0:00:03.5]} 48... Kd6 {[%clk
0:00:06.1]} 49. Bc4 {[%clk 0:00:04]} 49... f6 {[%clk 0:00:06]} 50. Nd4 {[%clk
0:00:04.5]} 50... Kc5 {[%clk 0:00:05.9]} 51. Nb3+ {[%clk 0:00:05]} 51... Kd6
{[%clk 0:00:06.2]} 52. Bd3 {[%clk 0:00:05.7]} 52... g5 {[%clk 0:00:06.2]} 53.
Nd4 {[%clk 0:00:05.7]} 53... Kc5 {[%clk 0:00:06]} 54. Nb3+ {[%clk 0:00:05.8]}
54... Kd5 {[%clk 0:00:06.2]} 55. Be4+ {[%clk 0:00:05.5]} 55... Kd6 {[%clk
0:00:06.4]} 56. h4 {[%clk 0:00:05.1]} 56... gxh4 {[%clk 0:00:06]} 57. gxh4
{[%clk 0:00:06]} 57... Bb5 {[%clk 0:00:06.2]} 58. Bb7 {[%clk 0:00:05.7]} 58...
Bd7 {[%clk 0:00:04.6]} 59. Nd4 {[%clk 0:00:05.9]} 59... Kc5 {[%clk 0:00:04.7]}
60. Nb3+ {[%clk 0:00:05.9]} 60... Kd6 {[%clk 0:00:05.5]} 61. Kd2 {[%clk
0:00:05.4]} 61... Ke5 {[%clk 0:00:04.7]} 62. Ke3 {[%clk 0:00:05.3]} 62... Be6
{[%clk 0:00:05.3]} 63. Nd4 {[%clk 0:00:05.4]} 63... Bd7 {[%clk 0:00:05.6]} 64.
Be4 {[%clk 0:00:05.4]} 64... Kd6 {[%clk 0:00:05.2]} 65. Bg6 {[%clk 0:00:04.9]}
65... b5 {[%clk 0:00:05.2]} 66. Bxh5 {[%clk 0:00:04.9]} 66... b4 {[%clk
0:00:05.9]} 67. Bg6 {[%clk 0:00:05.6]} 67... f5 {[%clk 0:00:03.5]} 68. Bxf5
{[%clk 0:00:05.3]} 68... Bxf5 {[%clk 0:00:02.3]} 69. Nxf5+ {[%clk 0:00:06.2]}
69... Kd5 {[%clk 0:00:03.2]} 70. Nd4 {[%clk 0:00:06.1]} 70... Kc4 {[%clk
0:00:03.9]} 71. h5 {[%clk 0:00:06.1]} 71... b3 {[%clk 0:00:03.8]} 72. Nxb3
{[%clk 0:00:06.1]} 72... Kxb3 {[%clk 0:00:04.7]} 73. h6 {[%clk 0:00:06.7]} 1-0

[Event "Early-Titled-Tuesday-Blitz-January-23-2024"]
[Site "Chess.com"]
[Date "2024.01.23"]
[Round "7"]
[White "K_A_S_T_O_R"]
[Black "SirStrateg"]
[Result "1/2-1/2"]
[WhiteElo "2883"]
[BlackElo "2654"]
[TimeControl "180+1"]
[EndTime "9:19:10 PST"]
[Termination "Game drawn - insufficient material"]

1. e4 {[%clk 0:03:00.9]} 1... d6 {[%clk 0:02:59.6]} 2. d4 {[%clk 0:02:59.9]}
2... Nf6 {[%clk 0:03:00]} 3. Nc3 {[%clk 0:02:59.2]} 3... c6 {[%clk 0:02:59.9]}
4. a4 {[%clk 0:02:58.4]} 4... e5 {[%clk 0:02:56.3]} 5. Nge2 {[%clk 0:02:52]}
5... Nbd7 {[%clk 0:02:54.1]} 6. g3 {[%clk 0:02:51.7]} 6... b6 {[%clk 0:02:51.8]}
7. Bg2 {[%clk 0:02:51.1]} 7... a6 {[%clk 0:02:52.3]} 8. O-O {[%clk 0:02:50.6]}
8... Bb7 {[%clk 0:02:52.9]} 9. h3 {[%clk 0:02:50.8]} 9... h5 {[%clk 0:02:50.7]}
10. Be3 {[%clk 0:02:45]} 10... b5 {[%clk 0:02:51]} 11. axb5 {[%clk 0:02:40.8]}
11... cxb5 {[%clk 0:02:33.6]} 12. d5 {[%clk 0:02:31.9]} 12... h4 {[%clk
0:02:21.5]} 13. Qd3 {[%clk 0:02:10.1]} 13... hxg3 {[%clk 0:02:09.1]} 14. fxg3
{[%clk 0:02:09.5]} 14... Rc8 {[%clk 0:02:08.6]} 15. Nd1 {[%clk 0:01:54.3]} 15...
Nc5 {[%clk 0:02:04.5]} 16. Bxc5 {[%clk 0:01:54.3]} 16... Rxc5 {[%clk 0:01:58.5]}
17. Ne3 {[%clk 0:01:54.5]} 17... Bc8 {[%clk 0:01:54]} 18. g4 {[%clk 0:01:44.5]}
18... g6 {[%clk 0:01:45.7]} 19. Rf2 {[%clk 0:01:37.2]} 19... Nh7 {[%clk
0:01:37.9]} 20. Raf1 {[%clk 0:01:26.2]} 20... Ng5 {[%clk 0:01:38]} 21. Kh2
{[%clk 0:01:25.7]} 21... Rc7 {[%clk 0:01:21.2]} 22. c3 {[%clk 0:01:19.6]} 22...
Rh4 {[%clk 0:01:05.3]} 23. Ng1 {[%clk 0:01:15.1]} 23... Be7 {[%clk 0:00:57.7]}
24. b4 {[%clk 0:01:09.3]} 24... Kf8 {[%clk 0:00:56.9]} 25. Kg3 {[%clk
0:01:01.7]} 25... Kg7 {[%clk 0:00:57.1]} 26. Nf3 {[%clk 0:00:56.2]} 26... Nxf3
{[%clk 0:00:56.8]} 27. Rxf3 {[%clk 0:00:56.3]} 27... Bg5 {[%clk 0:00:55.6]} 28.
Kf2 {[%clk 0:00:46.3]} 28... Rh7 {[%clk 0:00:47.5]} 29. Ke2 {[%clk 0:00:45.7]}
29... Kg8 {[%clk 0:00:45.6]} 30. Kd2 {[%clk 0:00:39.9]} 30... Bf4 {[%clk
0:00:37.8]} 31. Rxf4 {[%clk 0:00:36.9]} 31... exf4 {[%clk 0:00:38]} 32. Rxf4
{[%clk 0:00:37.5]} 32... Qg5 {[%clk 0:00:36.5]} 33. Rf3 {[%clk 0:00:35.5]} 33...
Qe5 {[%clk 0:00:36.1]} 34. Nc2 {[%clk 0:00:31.6]} 34... Re7 {[%clk 0:00:20.5]}
35. Rf2 {[%clk 0:00:30.7]} 35... Qh2 {[%clk 0:00:17.2]} 36. Nd4 {[%clk
0:00:24.4]} 36... Qg1 {[%clk 0:00:15.5]} 37. Re2 {[%clk 0:00:19.6]} 37... Re8
{[%clk 0:00:12.4]} 38. Qf3 {[%clk 0:00:18.9]} 38... Qb1 {[%clk 0:00:09.8]} 39.
Qf4 {[%clk 0:00:18.5]} 39... Qb2+ {[%clk 0:00:08.5]} 40. Kd3 {[%clk 0:00:18.8]}
40... Qb1+ {[%clk 0:00:06.7]} 41. Kd2 {[%clk 0:00:19.2]} 41... Qb2+ {[%clk
0:00:07]} 42. Nc2 {[%clk 0:00:19.3]} 42... Re5 {[%clk 0:00:05.8]} 43. Re1 {[%clk
0:00:19.2]} 43... Kg7 {[%clk 0:00:05.4]} 44. Qf1 {[%clk 0:00:18.3]} 44... Rh8
{[%clk 0:00:04.9]} 45. Rb1 {[%clk 0:00:18.4]} 45... Qa2 {[%clk 0:00:04.7]} 46.
Ra1 {[%clk 0:00:18.5]} 46... Qc4 {[%clk 0:00:04.5]} 47. Qxc4 {[%clk 0:00:17.4]}
47... bxc4 {[%clk 0:00:05.1]} 48. Ne3 {[%clk 0:00:18.3]} 48... f5 {[%clk
0:00:04.4]} 49. Nxc4 {[%clk 0:00:18.6]} 49... Re7 {[%clk 0:00:04.5]} 50. gxf5
{[%clk 0:00:18.9]} 50... gxf5 {[%clk 0:00:05]} 51. Nxd6 {[%clk 0:00:19.2]} 51...
fxe4 {[%clk 0:00:05.4]} 52. Bxe4 {[%clk 0:00:19.3]} 52... Bxh3 {[%clk
0:00:05.3]} 53. Kd3 {[%clk 0:00:17.8]} 53... Rd8 {[%clk 0:00:04.6]} 54. Rg1+
{[%clk 0:00:15.2]} 54... Kf6 {[%clk 0:00:04.4]} 55. Rg6+ {[%clk 0:00:13.8]}
55... Ke5 {[%clk 0:00:03.7]} 56. Nc4+ {[%clk 0:00:14]} 56... Kf4 {[%clk
0:00:03.3]} 57. Bh1 {[%clk 0:00:13.9]} 57... Bf5+ {[%clk 0:00:03.2]} 58. Kd4
{[%clk 0:00:13.4]} 58... Bxg6 {[%clk 0:00:03.7]} 59. Kc5 {[%clk 0:00:13.9]}
59... Bf7 {[%clk 0:00:04]} 60. d6 {[%clk 0:00:13.9]} 60... Re5+ {[%clk 0:00:04]}
61. Nxe5 {[%clk 0:00:14.2]} 61... Kxe5 {[%clk 0:00:04.5]} 62. Bb7 {[%clk
0:00:13.3]} 62... Rxd6 {[%clk 0:00:04.6]} 63. c4 {[%clk 0:00:13.8]} 63... Be8
{[%clk 0:00:04.2]} 64. b5 {[%clk 0:00:12.4]} 64... axb5 {[%clk 0:00:04.4]} 65.
cxb5 {[%clk 0:00:13.3]} 65... Rh6 {[%clk 0:00:04.4]} 66. b6 {[%clk 0:00:13.7]}
66... Rh2 {[%clk 0:00:03.9]} 67. Bf3 {[%clk 0:00:12.2]} 67... Rb2 {[%clk
0:00:03.6]} 68. b7 {[%clk 0:00:11.8]} 68... Bg6 {[%clk 0:00:04]} 69. Kc6 {[%clk
0:00:11.3]} 69... Ke6 {[%clk 0:00:03.7]} 70. Kc7 {[%clk 0:00:11.4]} 70... Rc2+
{[%clk 0:00:03]} 71. Bc6 {[%clk 0:00:11.5]} 71... Rb2 {[%clk 0:00:03.1]} 72.
b8=Q {[%clk 0:00:10.7]} 72... Rxb8 {[%clk 0:00:03.5]} 73. Kxb8 {[%clk
0:00:11.2]} 1/2-1/2